[Event "Early-Titled-Tuesday-Blitz-March-19-2024"]
[Site "Chess.com"]
[Date "2024.03.19"]
[Round "5"]
[White "wannabe2700"]
[Black "Adar_07"]
[Result "0-1"]
[WhiteElo "2634"]
[BlackElo "2848"]
[TimeControl "180+1"]
[EndTime "8:57:33 PDT"]
[Termination "Adar_07 won by resignation"]

1. b3 {[%clk 0:03:00.9]} 1... Nc6 {[%clk 0:02:59.4]} 2. Bb2 {[%clk 0:03:01.8]}
2... e5 {[%clk 0:02:59.7]} 3. e3 {[%clk 0:03:01.8]} 3... a6 {[%clk 0:02:59]} 4.
c4 {[%clk 0:03:01.4]} 4... Nf6 {[%clk 0:02:58.7]} 5. Nc3 {[%clk 0:03:01.5]} 5...
d5 {[%clk 0:02:58.9]} 6. cxd5 {[%clk 0:03:02.4]} 6... Nxd5 {[%clk 0:02:59.7]} 7.
Qc2 {[%clk 0:03:00.7]} 7... g6 {[%clk 0:02:54]} 8. Nf3 {[%clk 0:03:00]} 8... Bf5
{[%clk 0:02:50.3]} 9. e4 {[%clk 0:02:39.5]} 9... Ndb4 {[%clk 0:02:48.7]} 10. Qb1
{[%clk 0:02:39.7]} 10... Bg4 {[%clk 0:02:47.6]} 11. a3 {[%clk 0:02:39.8]} 11...
Bxf3 {[%clk 0:02:46.2]} 12. gxf3 {[%clk 0:02:40.7]} 12... Bh6 {[%clk 0:02:43.1]}
13. Bc1 {[%clk 0:02:35.7]} 13... Nd4 {[%clk 0:01:23.7]} 14. axb4 {[%clk
0:02:35.5]} 14... Nxf3+ {[%clk 0:01:23.7]} 15. Ke2 {[%clk 0:02:36.1]} 15... Qh4
{[%clk 0:01:22.6]} 16. Qd3 {[%clk 0:02:16.6]} 16... Nd4+ {[%clk 0:01:21.2]} 17.
Ke1 {[%clk 0:02:11.1]} 17... Rd8 {[%clk 0:01:06.6]} 18. Ne2 {[%clk 0:01:59.6]}
18... Be3 {[%clk 0:00:37.1]} 19. Nxd4 {[%clk 0:01:12.6]} 19... Bxd4 {[%clk
0:00:31.2]} 20. Kd1 {[%clk 0:00:18.6]} 20... Bxa1 {[%clk 0:00:29.1]} 21. Qc4
{[%clk 0:00:14.4]} 21... Bd4 {[%clk 0:00:22.7]} 22. f3 {[%clk 0:00:12.2]} 22...
O-O {[%clk 0:00:18.7]} 23. Qxc7 {[%clk 0:00:11.2]} 23... Rc8 {[%clk 0:00:18]}
24. Qxb7 {[%clk 0:00:11.5]} 24... Qf2 {[%clk 0:00:14.1]} 25. Be2 {[%clk
0:00:10.7]} 25... Rxc1+ {[%clk 0:00:10.8]} 26. Kxc1 {[%clk 0:00:11.6]} 26...
Qxe2 {[%clk 0:00:11.5]} 27. Rd1 {[%clk 0:00:06.4]} 27... Qxf3 {[%clk 0:00:08.9]}
28. Kc2 {[%clk 0:00:04.9]} 28... h5 {[%clk 0:00:04.9]} 29. Re1 {[%clk
0:00:03.9]} 29... h4 {[%clk 0:00:04.8]} 30. Qxa6 {[%clk 0:00:03.9]} 30... h3
{[%clk 0:00:03.2]} 31. Qc4 {[%clk 0:00:03.2]} 31... Qg2 {[%clk 0:00:03.2]} 32.
Re2 {[%clk 0:00:02.8]} 32... Qg4 {[%clk 0:00:03.2]} 33. b5 {[%clk 0:00:02.8]}
33... Rc8 {[%clk 0:00:03.4]} 34. Re1 {[%clk 0:00:02.4]} 34... Rxc4+ {[%clk
0:00:03.4]} 35. bxc4 {[%clk 0:00:03.3]} 35... Qe6 {[%clk 0:00:03.2]} 36. Kd3
{[%clk 0:00:03.2]} 36... Bc5 {[%clk 0:00:03.6]} 37. Kc3 {[%clk 0:00:03.3]} 37...
Qd6 {[%clk 0:00:03.9]} 38. d3 {[%clk 0:00:03.8]} 38... Qd4+ {[%clk 0:00:04.8]}
39. Kc2 {[%clk 0:00:04.1]} 39... Qf2+ {[%clk 0:00:04.5]} 40. Kd1 {[%clk
0:00:03.9]} 40... Bb4 {[%clk 0:00:04.9]} 41. Re2 {[%clk 0:00:04.5]} 41... Qf1+
{[%clk 0:00:05.5]} 0-1

[Event "Early-Titled-Tuesday-Blitz-March-19-2024"]
[Site "Chess.com"]
[Date "2024.03.19"]
[Round "5"]
[White "Zheenbekov86"]
[Black "hitaman"]
[Result "1-0"]
[WhiteElo "2465"]
[BlackElo "2696"]
[TimeControl "180+1"]
[EndTime "8:57:35 PDT"]
[Termination "Zheenbekov86 won by resignation"]

1. Nf3 {[%clk 0:02:59.2]} 1... d5 {[%clk 0:02:59]} 2. g3 {[%clk 0:02:59]} 2...
g6 {[%clk 0:02:58.5]} 3. Bg2 {[%clk 0:02:58.9]} 3... Bg7 {[%clk 0:02:59.1]} 4.
O-O {[%clk 0:02:58.9]} 4... e5 {[%clk 0:02:59.2]} 5. d3 {[%clk 0:02:55.8]} 5...
Ne7 {[%clk 0:02:59.1]} 6. Nbd2 {[%clk 0:02:48.1]} 6... O-O {[%clk 0:02:57.8]} 7.
c4 {[%clk 0:02:45.7]} 7... c6 {[%clk 0:02:46.3]} 8. Rb1 {[%clk 0:02:43.2]} 8...
a5 {[%clk 0:02:44.2]} 9. b3 {[%clk 0:02:34.6]} 9... Na6 {[%clk 0:02:30.4]} 10.
Bb2 {[%clk 0:02:34]} 10... d4 {[%clk 0:02:30.7]} 11. a3 {[%clk 0:02:23.4]} 11...
c5 {[%clk 0:02:24.6]} 12. Nh4 {[%clk 0:02:11.4]} 12... Nc6 {[%clk 0:02:19.7]}
13. Bd5 {[%clk 0:01:38.1]} 13... Nc7 {[%clk 0:02:15.4]} 14. Bg2 {[%clk
0:01:37.4]} 14... f5 {[%clk 0:02:09.8]} 15. Bxc6 {[%clk 0:01:13.4]} 15... bxc6
{[%clk 0:02:09.7]} 16. Ng2 {[%clk 0:01:09.8]} 16... Rb8 {[%clk 0:02:01.5]} 17.
f4 {[%clk 0:01:05.3]} 17... Ne6 {[%clk 0:01:54.2]} 18. fxe5 {[%clk 0:01:02.9]}
18... Bxe5 {[%clk 0:01:55.1]} 19. Nf3 {[%clk 0:01:02.9]} 19... Bg7 {[%clk
0:01:54.5]} 20. e3 {[%clk 0:00:58.4]} 20... a4 {[%clk 0:01:41.1]} 21. bxa4
{[%clk 0:00:54]} 21... Rxb2 {[%clk 0:01:28]} 22. Rxb2 {[%clk 0:00:53.8]} 22...
dxe3 {[%clk 0:01:28.6]} 23. Rb8 {[%clk 0:00:43.3]} 23... Qd6 {[%clk 0:01:20.3]}
24. Ra8 {[%clk 0:00:40.5]} 24... Nc7 {[%clk 0:01:14.2]} 25. Ra5 {[%clk
0:00:39.4]} 25... Re8 {[%clk 0:01:12.1]} 26. Re1 {[%clk 0:00:20.2]} 26... Bc3
{[%clk 0:01:09.4]} 27. Ra7 {[%clk 0:00:19.3]} 27... Bxe1 {[%clk 0:01:09.3]} 28.
Qxe1 {[%clk 0:00:18.7]} 28... Re7 {[%clk 0:00:50.2]} 29. Qc3 {[%clk 0:00:18.2]}
29... h6 {[%clk 0:00:38.7]} 30. Nge1 {[%clk 0:00:13.8]} 30... Nd5 {[%clk
0:00:36.1]} 31. Qa5 {[%clk 0:00:12.9]} 31... Rxa7 {[%clk 0:00:35.6]} 32. Qxa7
{[%clk 0:00:12.8]} 32... Ne7 {[%clk 0:00:33.8]} 33. a5 {[%clk 0:00:10.2]} 33...
g5 {[%clk 0:00:18.6]} 34. Qb6 {[%clk 0:00:08.7]} 34... g4 {[%clk 0:00:15.2]} 35.
a6 {[%clk 0:00:08]} 35... Bxa6 {[%clk 0:00:14.3]} 36. Qxa6 {[%clk 0:00:07.6]}
36... gxf3 {[%clk 0:00:14.7]} 37. Nxf3 {[%clk 0:00:07]} 37... Qxd3 {[%clk
0:00:14.9]} 38. Qa8+ {[%clk 0:00:06.6]} 38... Kf7 {[%clk 0:00:14.6]} 39. Ne5+
{[%clk 0:00:06.5]} 1-0

[Event "Early-Titled-Tuesday-Blitz-March-19-2024"]
[Site "Chess.com"]
[Date "2024.03.19"]
[Round "5"]
[White "RedFirePanda"]
[Black "Fjal"]
[Result "1-0"]
[WhiteElo "2533"]
[BlackElo "2324"]
[TimeControl "180+1"]
[EndTime "8:57:35 PDT"]
[Termination "RedFirePanda won by resignation"]

1. d4 {[%clk 0:03:00.9]} 1... d6 {[%clk 0:02:54.2]} 2. Bf4 {[%clk 0:03:00]} 2...
Nd7 {[%clk 0:02:53.8]} 3. e3 {[%clk 0:02:57.6]} 3... g6 {[%clk 0:02:54.7]} 4.
Nf3 {[%clk 0:02:56.2]} 4... Bg7 {[%clk 0:02:55.1]} 5. c3 {[%clk 0:02:55.3]} 5...
e5 {[%clk 0:02:55.5]} 6. dxe5 {[%clk 0:02:53.7]} 6... dxe5 {[%clk 0:02:56.4]} 7.
Bg3 {[%clk 0:02:53.3]} 7... Qe7 {[%clk 0:02:56.7]} 8. Be2 {[%clk 0:02:49.6]}
8... Nh6 {[%clk 0:02:56.6]} 9. h3 {[%clk 0:02:45.8]} 9... O-O {[%clk 0:02:56.7]}
10. O-O {[%clk 0:02:45.5]} 10... f5 {[%clk 0:02:53.8]} 11. Nbd2 {[%clk 0:02:39]}
11... Nf7 {[%clk 0:02:52.8]} 12. Qb3 {[%clk 0:02:36.1]} 12... Kh8 {[%clk
0:02:52.1]} 13. Rfe1 {[%clk 0:02:25.5]} 13... g5 {[%clk 0:02:51.8]} 14. Nc4
{[%clk 0:02:19.2]} 14... Qc5 {[%clk 0:02:37.7]} 15. Rad1 {[%clk 0:02:15.6]}
15... f4 {[%clk 0:02:37]} 16. exf4 {[%clk 0:02:14]} 16... exf4 {[%clk
0:02:37.9]} 17. Bh2 {[%clk 0:02:13.1]} 17... Nb6 {[%clk 0:02:31.3]} 18. Nxb6
{[%clk 0:02:09.3]} 18... axb6 {[%clk 0:02:32.2]} 19. Nd2 {[%clk 0:02:07.4]}
19... Bf5 {[%clk 0:02:30.7]} 20. Bf3 {[%clk 0:02:02.2]} 20... c6 {[%clk
0:02:25.7]} 21. Be4 {[%clk 0:02:00.7]} 21... Nd6 {[%clk 0:01:50.2]} 22. Bxf5
{[%clk 0:01:57.5]} 22... Nxf5 {[%clk 0:01:51.1]} 23. Ne4 {[%clk 0:01:55.4]}
23... Qe7 {[%clk 0:01:48.1]} 24. Nd6 {[%clk 0:01:52.3]} 24... Qd7 {[%clk
0:01:21.6]} 25. Nxf5 {[%clk 0:01:16.8]} 25... Qxf5 {[%clk 0:01:22.5]} 26. Re7
{[%clk 0:01:12.3]} 26... b5 {[%clk 0:00:53.2]} 27. Qb4 {[%clk 0:00:41.8]} 27...
h5 {[%clk 0:00:38.9]} 28. Qd6 {[%clk 0:00:27.2]} 28... Bf6 {[%clk 0:00:20.4]}
29. Rd7 {[%clk 0:00:08.9]} 29... Rad8 {[%clk 0:00:12.6]} 30. Kf1 {[%clk
0:00:09.1]} 30... Rxd7 {[%clk 0:00:12.4]} 31. Qxd7 {[%clk 0:00:09.4]} 31... Rd8
{[%clk 0:00:12.3]} 32. Qxf5 {[%clk 0:00:09]} 32... Rxd1+ {[%clk 0:00:11.3]} 33.
Ke2 {[%clk 0:00:09.2]} 33... Rd6 {[%clk 0:00:11.1]} 34. g3 {[%clk 0:00:07.9]}
34... Kg7 {[%clk 0:00:10.4]} 35. gxf4 {[%clk 0:00:07.7]} 35... gxf4 {[%clk
0:00:11.3]} 36. Bxf4 {[%clk 0:00:08]} 36... Rd5 {[%clk 0:00:11.7]} 37. Qe4
{[%clk 0:00:05.2]} 37... Kf7 {[%clk 0:00:11.5]} 38. Be3 {[%clk 0:00:04.9]} 38...
Re5 {[%clk 0:00:11]} 39. Qh7+ {[%clk 0:00:05.1]} 39... Ke6 {[%clk 0:00:09.6]}
40. Kf3 {[%clk 0:00:05.5]} 40... b6 {[%clk 0:00:09.4]} 41. Bf4 {[%clk
0:00:04.1]} 41... Rf5 {[%clk 0:00:09.3]} 42. Ke4 {[%clk 0:00:04]} 42... c5
{[%clk 0:00:07.7]} 43. Qxf5+ {[%clk 0:00:04]} 1-0

[Event "Early-Titled-Tuesday-Blitz-March-19-2024"]
[Site "Chess.com"]
[Date "2024.03.19"]
[Round "5"]
[White "nihalsarin"]
[Black "vugarrasulov"]
[Result "1-0"]
[WhiteElo "3183"]
[BlackElo "2984"]
[TimeControl "180+1"]
[EndTime "8:57:41 PDT"]
[Termination "nihalsarin won on time"]

1. a3 {[%clk 0:02:51.8]} 1... g6 {[%clk 0:02:58.1]} 2. e4 {[%clk 0:02:47.9]}
2... Bg7 {[%clk 0:02:58.4]} 3. d4 {[%clk 0:02:46]} 3... d5 {[%clk 0:02:57.4]} 4.
e5 {[%clk 0:02:43.7]} 4... c5 {[%clk 0:02:56.8]} 5. c3 {[%clk 0:02:42]} 5... Nc6
{[%clk 0:02:55.7]} 6. Be3 {[%clk 0:02:41.9]} 6... Nh6 {[%clk 0:02:50.8]} 7. Nf3
{[%clk 0:02:41.1]} 7... Nf5 {[%clk 0:02:50.3]} 8. Bd3 {[%clk 0:02:41.1]} 8...
cxd4 {[%clk 0:02:44.9]} 9. cxd4 {[%clk 0:02:37.8]} 9... Qb6 {[%clk 0:02:34.7]}
10. Ra2 {[%clk 0:01:59.8]} 10... O-O {[%clk 0:02:30]} 11. Nc3 {[%clk 0:01:51.5]}
11... f6 {[%clk 0:01:54.6]} 12. exf6 {[%clk 0:01:37.2]} 12... Bxf6 {[%clk
0:01:55.5]} 13. O-O {[%clk 0:01:34.3]} 13... Qd8 {[%clk 0:01:48.8]} 14. Bxf5
{[%clk 0:01:05.7]} 14... Bxf5 {[%clk 0:01:47.6]} 15. h3 {[%clk 0:01:06.5]} 15...
Rc8 {[%clk 0:01:44.8]} 16. Re1 {[%clk 0:01:06.4]} 16... Qd7 {[%clk 0:01:34.4]}
17. Bh6 {[%clk 0:01:02.8]} 17... Rf7 {[%clk 0:01:33.1]} 18. Ne5 {[%clk
0:00:57.2]} 18... Bxe5 {[%clk 0:01:28.6]} 19. dxe5 {[%clk 0:00:58.1]} 19... d4
{[%clk 0:01:26.4]} 20. Ne2 {[%clk 0:00:45.1]} 20... d3 {[%clk 0:01:17]} 21. Ng3
{[%clk 0:00:42.7]} 21... Qd5 {[%clk 0:01:15.3]} 22. Ra1 {[%clk 0:00:29.8]} 22...
Nd4 {[%clk 0:01:07.9]} 23. Rc1 {[%clk 0:00:30.5]} 23... Rd8 {[%clk 0:00:57.4]}
24. Re3 {[%clk 0:00:19.5]} 24... Nc2 {[%clk 0:00:41.6]} 25. Rf3 {[%clk
0:00:19.5]} 25... Be6 {[%clk 0:00:32.4]} 26. Rxf7 {[%clk 0:00:18]} 26... Bxf7
{[%clk 0:00:33.3]} 27. Qd2 {[%clk 0:00:18]} 27... Be6 {[%clk 0:00:23.8]} 28. Kh2
{[%clk 0:00:16.6]} 28... Rc8 {[%clk 0:00:20.7]} 29. Qf4 {[%clk 0:00:14.3]} 29...
Qd4 {[%clk 0:00:16.5]} 30. Rxc2 {[%clk 0:00:10.2]} 30... Qxf4 {[%clk 0:00:14.1]}
31. Rxc8+ {[%clk 0:00:10.1]} 31... Bxc8 {[%clk 0:00:15]} 32. Bxf4 {[%clk
0:00:10.3]} 32... Kf7 {[%clk 0:00:15.9]} 33. Kg1 {[%clk 0:00:10.1]} 33... Ke6
{[%clk 0:00:16.3]} 34. Nf1 {[%clk 0:00:10.4]} 34... Kd5 {[%clk 0:00:16.1]} 35.
Nd2 {[%clk 0:00:11.2]} 35... b5 {[%clk 0:00:09]} 36. Kf1 {[%clk 0:00:10.6]}
36... a5 {[%clk 0:00:09.5]} 37. Ke1 {[%clk 0:00:11.1]} 37... b4 {[%clk 0:00:10]}
38. axb4 {[%clk 0:00:10.6]} 38... axb4 {[%clk 0:00:10.9]} 39. f3 {[%clk
0:00:11.2]} 39... Ba6 {[%clk 0:00:07.9]} 40. Bg5 {[%clk 0:00:11.4]} 40... Kxe5
{[%clk 0:00:07.6]} 41. Bxe7 {[%clk 0:00:11.6]} 41... Kf4 {[%clk 0:00:08.2]} 42.
Kf2 {[%clk 0:00:11.1]} 42... Ke5 {[%clk 0:00:08.3]} 43. Bxb4 {[%clk 0:00:10.8]}
1-0

[Event "Early-Titled-Tuesday-Blitz-March-19-2024"]
[Site "Chess.com"]
[Date "2024.03.19"]
[Round "5"]
[White "dropstoneDP"]
[Black "GoltsevDmitry2000"]
[Result "1-0"]
[WhiteElo "2981"]
[BlackElo "2763"]
[TimeControl "180+1"]
[EndTime "8:57:43 PDT"]
[Termination "dropstoneDP won by checkmate"]

1. e4 {[%clk 0:03:00.9]} 1... e6 {[%clk 0:02:56.3]} 2. d4 {[%clk 0:03:00.9]}
2... d5 {[%clk 0:02:57.2]} 3. e5 {[%clk 0:03:01.5]} 3... c5 {[%clk 0:02:57.8]}
4. c3 {[%clk 0:03:01.8]} 4... Nc6 {[%clk 0:02:58.5]} 5. Nf3 {[%clk 0:03:02.3]}
5... Nge7 {[%clk 0:02:59]} 6. Na3 {[%clk 0:02:58.8]} 6... Nf5 {[%clk 0:02:58.6]}
7. Nc2 {[%clk 0:02:59.4]} 7... cxd4 {[%clk 0:02:58.5]} 8. cxd4 {[%clk
0:03:00.3]} 8... h5 {[%clk 0:02:59.1]} 9. Bd3 {[%clk 0:02:58.4]} 9... Be7 {[%clk
0:02:58.4]} 10. a3 {[%clk 0:02:55.7]} 10... g5 {[%clk 0:02:57.7]} 11. h3 {[%clk
0:02:53.2]} 11... a6 {[%clk 0:02:53.3]} 12. Bd2 {[%clk 0:02:46.8]} 12... b5
{[%clk 0:02:49.1]} 13. Qc1 {[%clk 0:02:43.4]} 13... Rg8 {[%clk 0:02:44.2]} 14.
g4 {[%clk 0:02:43.1]} 14... hxg4 {[%clk 0:02:45.1]} 15. hxg4 {[%clk 0:02:43.9]}
15... Nh4 {[%clk 0:02:45.7]} 16. Nxh4 {[%clk 0:02:32.9]} 16... gxh4 {[%clk
0:02:46.3]} 17. g5 {[%clk 0:02:33.4]} 17... Bxg5 {[%clk 0:02:44.3]} 18. Bxg5
{[%clk 0:02:33.8]} 18... Qxg5 {[%clk 0:02:44]} 19. Qxg5 {[%clk 0:02:32.2]} 19...
Rxg5 {[%clk 0:02:44.9]} 20. Rxh4 {[%clk 0:02:30.7]} 20... Rg1+ {[%clk 0:02:42]}
21. Kd2 {[%clk 0:02:30.5]} 21... Rxa1 {[%clk 0:02:42.4]} 22. Nxa1 {[%clk
0:02:30.6]} 22... Na5 {[%clk 0:02:40.5]} 23. Kc3 {[%clk 0:02:24.1]} 23... Ke7
{[%clk 0:02:38]} 24. Rh8 {[%clk 0:02:23.3]} 24... Bb7 {[%clk 0:02:37.7]} 25.
Rxa8 {[%clk 0:02:22.7]} 25... Bxa8 {[%clk 0:02:38.6]} 26. Nb3 {[%clk 0:02:21.1]}
26... Nc6 {[%clk 0:02:18.9]} 27. Nc5 {[%clk 0:02:19.9]} 27... Nb8 {[%clk
0:02:19.4]} 28. f4 {[%clk 0:02:16.9]} 28... Bc6 {[%clk 0:02:12.9]} 29. f5 {[%clk
0:02:08.3]} 29... exf5 {[%clk 0:02:05.1]} 30. Bxf5 {[%clk 0:02:09.2]} 30... f6
{[%clk 0:02:05.7]} 31. exf6+ {[%clk 0:01:41.1]} 31... Kxf6 {[%clk 0:02:04.9]}
32. Bc8 {[%clk 0:01:41.6]} 32... a5 {[%clk 0:02:02.7]} 33. Nb3 {[%clk
0:01:34.4]} 33... a4 {[%clk 0:01:49.1]} 34. Nc5 {[%clk 0:01:21.4]} 34... Kg5
{[%clk 0:01:47.6]} 35. Na6 {[%clk 0:00:45.9]} 35... Nxa6 {[%clk 0:01:03.5]} 36.
Bxa6 {[%clk 0:00:46.8]} 36... Kf4 {[%clk 0:01:03.7]} 37. Kb4 {[%clk 0:00:47.3]}
37... Ke3 {[%clk 0:01:02.9]} 38. Kc5 {[%clk 0:00:46.2]} 38... Be8 {[%clk
0:01:02.4]} 39. Bb7 {[%clk 0:00:45]} 39... Kd3 {[%clk 0:00:59.8]} 40. Bxd5
{[%clk 0:00:44.4]} 40... Kc2 {[%clk 0:01:00.2]} 41. Be6 {[%clk 0:00:22.6]} 41...
Kxb2 {[%clk 0:00:42.2]} 42. Kb4 {[%clk 0:00:22.6]} 42... Bg6 {[%clk 0:00:22.6]}
43. d5 {[%clk 0:00:21.6]} 43... Bc2 {[%clk 0:00:20]} 44. d6 {[%clk 0:00:21.5]}
44... Bb3 {[%clk 0:00:20.9]} 45. Bg4 {[%clk 0:00:19.4]} 45... Bc2 {[%clk
0:00:18]} 46. d7 {[%clk 0:00:19.3]} 46... Bb3 {[%clk 0:00:18]} 47. d8=Q {[%clk
0:00:19.5]} 47... Bc2 {[%clk 0:00:18.9]} 48. Qd4+ {[%clk 0:00:19.7]} 48... Kb1
{[%clk 0:00:18.3]} 49. Kc3 {[%clk 0:00:19.5]} 49... b4+ {[%clk 0:00:16.7]} 50.
Qxb4+ {[%clk 0:00:19.4]} 50... Bb3 {[%clk 0:00:14.8]} 51. Qd4 {[%clk 0:00:19.6]}
51... Ka2 {[%clk 0:00:14.1]} 52. Qd2+ {[%clk 0:00:20]} 52... Kxa3 {[%clk
0:00:14.9]} 53. Qb2# {[%clk 0:00:19.9]} 1-0

[Event "Early-Titled-Tuesday-Blitz-March-19-2024"]
[Site "Chess.com"]
[Date "2024.03.19"]
[Round "5"]
[White "RoelandPruijssers"]
[Black "alexrustemov"]
[Result "1/2-1/2"]
[WhiteElo "2705"]
[BlackElo "2871"]
[TimeControl "180+1"]
[EndTime "8:57:46 PDT"]
[Termination "Game drawn by repetition"]

1. e4 {[%clk 0:03:00.9]} 1... e6 {[%clk 0:02:59.9]} 2. d4 {[%clk 0:02:57]} 2...
d5 {[%clk 0:03:00.2]} 3. Nd2 {[%clk 0:02:57.6]} 3... dxe4 {[%clk 0:02:59.4]} 4.
Nxe4 {[%clk 0:02:57.4]} 4... Bd7 {[%clk 0:03:00.3]} 5. Nf3 {[%clk 0:02:54.6]}
5... Bc6 {[%clk 0:02:59.1]} 6. Bd3 {[%clk 0:02:54.1]} 6... Nd7 {[%clk
0:02:59.5]} 7. O-O {[%clk 0:02:50.9]} 7... Ngf6 {[%clk 0:02:59.3]} 8. Ned2
{[%clk 0:02:50.1]} 8... Be7 {[%clk 0:02:58.5]} 9. Nc4 {[%clk 0:02:47.8]} 9...
Bd5 {[%clk 0:02:56.8]} 10. Ne3 {[%clk 0:02:38.7]} 10... Bc6 {[%clk 0:02:55.6]}
11. Nc4 {[%clk 0:02:30.8]} 11... Bd5 {[%clk 0:02:52.8]} 12. Ne3 {[%clk
0:02:31.4]} 12... Be4 {[%clk 0:02:52.6]} 13. Be2 {[%clk 0:02:31.1]} 13... O-O
{[%clk 0:02:48.3]} 14. c4 {[%clk 0:02:29.5]} 14... b6 {[%clk 0:02:40.5]} 15. b3
{[%clk 0:02:26.7]} 15... Bb7 {[%clk 0:02:34.3]} 16. Bb2 {[%clk 0:02:26]} 16...
Re8 {[%clk 0:02:31.6]} 17. Re1 {[%clk 0:02:13.4]} 17... c6 {[%clk 0:02:31.2]}
18. Qc2 {[%clk 0:02:12.6]} 18... Qc7 {[%clk 0:02:31.1]} 19. Rad1 {[%clk
0:02:13.1]} 19... Rad8 {[%clk 0:02:30.8]} 20. h3 {[%clk 0:01:40.6]} 20... h6
{[%clk 0:02:30.3]} 21. Bf1 {[%clk 0:01:35.4]} 21... Bf8 {[%clk 0:02:29.4]} 22.
Ne5 {[%clk 0:01:30.5]} 22... c5 {[%clk 0:02:22.4]} 23. Nxd7 {[%clk 0:01:26.2]}
23... Nxd7 {[%clk 0:01:53.3]} 24. d5 {[%clk 0:01:26.3]} 24... exd5 {[%clk
0:01:40.7]} 25. Nxd5 {[%clk 0:01:23.4]} 25... Bxd5 {[%clk 0:01:33.2]} 26. Rxe8
{[%clk 0:01:23.2]} 26... Rxe8 {[%clk 0:01:31.4]} 27. Rxd5 {[%clk 0:01:23.7]}
27... Be7 {[%clk 0:01:26.5]} 28. Qf5 {[%clk 0:01:17.4]} 28... Nf6 {[%clk
0:01:25.2]} 29. Rd1 {[%clk 0:00:59.5]} 29... Qc8 {[%clk 0:01:22.3]} 30. Qf3
{[%clk 0:00:56.7]} 30... Rd8 {[%clk 0:01:17.3]} 31. Re1 {[%clk 0:00:56.8]} 31...
Qd7 {[%clk 0:01:16.7]} 32. Qe3 {[%clk 0:00:46.1]} 32... Kf8 {[%clk 0:01:15.6]}
33. g3 {[%clk 0:00:41]} 33... Re8 {[%clk 0:01:14.2]} 34. Qf3 {[%clk 0:00:37.5]}
34... Rd8 {[%clk 0:01:06.7]} 35. Bg2 {[%clk 0:00:34.6]} 35... Ne8 {[%clk
0:01:06]} 36. Qe4 {[%clk 0:00:21]} 36... g6 {[%clk 0:00:58.4]} 37. Qe3 {[%clk
0:00:19.5]} 37... Bg5 {[%clk 0:00:55.5]} 38. Qc3 {[%clk 0:00:17.6]} 38... Qd4
{[%clk 0:00:49.1]} 39. Qxd4 {[%clk 0:00:18.1]} 39... cxd4 {[%clk 0:00:49.3]} 40.
Bd5 {[%clk 0:00:18.9]} 40... Bf6 {[%clk 0:00:46.1]} 41. Rd1 {[%clk 0:00:18.9]}
41... Nc7 {[%clk 0:00:46.2]} 42. Bxd4 {[%clk 0:00:17.9]} 42... Bxd4 {[%clk
0:00:42.6]} 43. Rxd4 {[%clk 0:00:18.8]} 43... Nxd5 {[%clk 0:00:33.4]} 44. cxd5
{[%clk 0:00:19.7]} 44... Ke7 {[%clk 0:00:33.2]} 45. Kg2 {[%clk 0:00:20.2]} 45...
Kd6 {[%clk 0:00:33.1]} 46. Rd2 {[%clk 0:00:20.3]} 46... Re8 {[%clk 0:00:30.7]}
47. Kf3 {[%clk 0:00:20.7]} 47... Re5 {[%clk 0:00:31]} 48. Rd4 {[%clk 0:00:18.8]}
48... Rxd5 {[%clk 0:00:30.9]} 49. Ke4 {[%clk 0:00:19.3]} 49... Rxd4+ {[%clk
0:00:30.3]} 50. Kxd4 {[%clk 0:00:20.2]} 50... h5 {[%clk 0:00:30]} 51. h4 {[%clk
0:00:20]} 51... f6 {[%clk 0:00:27.7]} 52. Ke4 {[%clk 0:00:17]} 52... Ke6 {[%clk
0:00:27.2]} 53. f4 {[%clk 0:00:15.2]} 53... f5+ {[%clk 0:00:21]} 54. Kd4 {[%clk
0:00:15.3]} 54... Kd6 {[%clk 0:00:21.7]} 55. a4 {[%clk 0:00:13.7]} 55... a5
{[%clk 0:00:20.4]} 56. Kc4 {[%clk 0:00:14]} 56... Kc6 {[%clk 0:00:20.4]} 57. Kd4
{[%clk 0:00:14.5]} 57... Kd6 {[%clk 0:00:20.5]} 58. Kc4 {[%clk 0:00:14.9]} 58...
Kc6 {[%clk 0:00:20.3]} 59. Kd4 {[%clk 0:00:15.4]} 59... Kd6 {[%clk 0:00:20.5]}
1/2-1/2

[Event "Early-Titled-Tuesday-Blitz-March-19-2024"]
[Site "Chess.com"]
[Date "2024.03.19"]
[Round "5"]
[White "Kaissa10"]
[Black "zurzan"]
[Result "1-0"]
[WhiteElo "2290"]
[BlackElo "2033"]
[TimeControl "180+1"]
[EndTime "8:57:46 PDT"]
[Termination "Kaissa10 won on time"]

1. e4 {[%clk 0:02:56.8]} 1... c5 {[%clk 0:02:59.4]} 2. Nf3 {[%clk 0:02:56.8]}
2... g6 {[%clk 0:02:59.1]} 3. d4 {[%clk 0:02:56.5]} 3... cxd4 {[%clk 0:03:00]}
4. Qxd4 {[%clk 0:02:57]} 4... Nf6 {[%clk 0:02:59.4]} 5. Nc3 {[%clk 0:02:57.2]}
5... Nc6 {[%clk 0:02:59.4]} 6. Qa4 {[%clk 0:02:57.9]} 6... Bg7 {[%clk
0:02:56.1]} 7. e5 {[%clk 0:02:41.6]} 7... Ng8 {[%clk 0:02:55.9]} 8. Bf4 {[%clk
0:02:28.9]} 8... f6 {[%clk 0:02:47.9]} 9. exf6 {[%clk 0:02:24.9]} 9... Nxf6
{[%clk 0:02:47.9]} 10. Bc4 {[%clk 0:01:41.1]} 10... Qa5 {[%clk 0:02:21.2]} 11.
Qxa5 {[%clk 0:01:08.3]} 11... Nxa5 {[%clk 0:02:22.1]} 12. Bb5 {[%clk 0:01:08.9]}
12... a6 {[%clk 0:02:19.2]} 13. Bd3 {[%clk 0:01:08.6]} 13... O-O {[%clk
0:02:16.1]} 14. O-O {[%clk 0:01:07.9]} 14... Nc6 {[%clk 0:02:14.8]} 15. Rfe1
{[%clk 0:01:05.9]} 15... d6 {[%clk 0:02:13.9]} 16. Bg5 {[%clk 0:01:04.6]} 16...
Bf5 {[%clk 0:02:04.5]} 17. Bc4+ {[%clk 0:00:53.6]} 17... Kh8 {[%clk 0:02:02]}
18. Rad1 {[%clk 0:00:42.5]} 18... Bxc2 {[%clk 0:01:59.3]} 19. Rd2 {[%clk
0:00:39.5]} 19... Bf5 {[%clk 0:01:58]} 20. Nd5 {[%clk 0:00:17.2]} 20... Nxd5
{[%clk 0:01:51.4]} 21. Bxd5 {[%clk 0:00:18.1]} 21... e5 {[%clk 0:01:07.6]} 22.
Bxc6 {[%clk 0:00:16.6]} 22... bxc6 {[%clk 0:01:08.5]} 23. Rxd6 {[%clk 0:00:17]}
23... e4 {[%clk 0:01:09.1]} 24. Nd4 {[%clk 0:00:14.4]} 24... c5 {[%clk 0:01:04]}
25. Nxf5 {[%clk 0:00:08.1]} 25... gxf5 {[%clk 0:01:04.9]} 26. Be3 {[%clk
0:00:08.7]} 26... Rfc8 {[%clk 0:01:01.3]} 27. b3 {[%clk 0:00:06.8]} 27... a5
{[%clk 0:01:00.6]} 28. Red1 {[%clk 0:00:06]} 28... c4 {[%clk 0:00:57.9]} 29.
bxc4 {[%clk 0:00:05.9]} 29... Be5 {[%clk 0:00:55.9]} 30. R6d5 {[%clk 0:00:04.4]}
30... Bc3 {[%clk 0:00:49.6]} 31. c5 {[%clk 0:00:04.7]} 31... Bb4 {[%clk
0:00:43.7]} 32. Rxf5 {[%clk 0:00:04.7]} 32... a4 {[%clk 0:00:41.7]} 33. h4
{[%clk 0:00:05.1]} 33... Ra5 {[%clk 0:00:37.8]} 34. Rd7 {[%clk 0:00:05.1]} 34...
Bc3 {[%clk 0:00:11.1]} 35. Rff7 {[%clk 0:00:04.6]} 35... h5 {[%clk 0:00:08.8]}
36. Rh7+ {[%clk 0:00:04.7]} 36... Kg8 {[%clk 0:00:09.2]} 37. Rxh5 {[%clk
0:00:04.3]} 37... Raa8 {[%clk 0:00:06.4]} 38. Rg5+ {[%clk 0:00:03.9]} 38... Kh8
{[%clk 0:00:05.7]} 39. Rgd5 {[%clk 0:00:04.4]} 39... Rg8 {[%clk 0:00:04.9]} 40.
Kh2 {[%clk 0:00:04.4]} 40... Rac8 {[%clk 0:00:04.9]} 41. Kh3 {[%clk 0:00:03.9]}
41... Rce8 {[%clk 0:00:04.8]} 42. g4 {[%clk 0:00:04.3]} 42... Ref8 {[%clk
0:00:04.4]} 43. g5 {[%clk 0:00:04.4]} 43... Rf3+ {[%clk 0:00:04]} 44. Kg2 {[%clk
0:00:04.9]} 1-0